[Event "*** Titled Tuesday Blitz"]
[Site "Chess.com"]
[Date "2018.07.03"]
[Round "6"]
[White "Saitama_Hero"]
[Black "kungmongmanh"]
[Result "1-0"]
[WhiteElo "2348"]
[BlackElo "2481"]
[TimeControl "180+2"]
[EndTime "14:13:54 PDT"]
[Termination "Saitama_Hero won by checkmate"]

1. d4 {[%clk 0:03:01.9]} 1... Nf6 {[%clk 0:03:00.3]} 2. c4 {[%clk 0:03:03.3]}
2... e6 {[%clk 0:03:01.5]} 3. Nc3 {[%clk 0:03:04.1]} 3... Bb4 {[%clk 0:03:02.1]}
4. f3 {[%clk 0:03:05.2]} 4... c5 {[%clk 0:02:59.6]} 5. a3 {[%clk 0:03:06.2]}
5... Bxc3+ {[%clk 0:03:00.6]} 6. bxc3 {[%clk 0:03:08.1]} 6... d6 {[%clk
0:03:02]} 7. e4 {[%clk 0:03:09.4]} 7... Qc7 {[%clk 0:02:56]} 8. d5 {[%clk
0:03:09.9]} 8... e5 {[%clk 0:02:49.2]} 9. Bd3 {[%clk 0:03:10.6]} 9... h6 {[%clk
0:02:44.1]} 10. Ne2 {[%clk 0:03:11.8]} 10... Nbd7 {[%clk 0:02:38.9]} 11. O-O
{[%clk 0:03:08]} 11... O-O {[%clk 0:02:39.7]} 12. Be3 {[%clk 0:02:59.3]} 12...
Re8 {[%clk 0:02:39.2]} 13. Kh1 {[%clk 0:02:54.8]} 13... b6 {[%clk 0:02:40]} 14.
Qd2 {[%clk 0:02:49.4]} 14... Nf8 {[%clk 0:02:33.9]} 15. Ng3 {[%clk 0:02:37.9]}
15... Ng6 {[%clk 0:02:29]} 16. Nf5 {[%clk 0:02:32.7]} 16... Ba6 {[%clk
0:02:22.9]} 17. Bxh6 {[%clk 0:02:25.7]} 17... Nh5 {[%clk 0:02:06.5]} 18. Qg5
{[%clk 0:02:17.6]} 18... Nhf4 {[%clk 0:01:05.4]} 19. Bxg7 {[%clk 0:02:16.4]}
19... Nxd3 {[%clk 0:00:42]} 20. Bf6 {[%clk 0:02:16]} 20... Nf4 {[%clk
0:00:21.4]} 21. Qh6 {[%clk 0:02:14.2]} 21... Ne6 {[%clk 0:00:19.9]} 22. dxe6
{[%clk 0:02:10.3]} 22... fxe6 {[%clk 0:00:19.1]} 23. Qxg6+ {[%clk 0:02:10.4]}
23... Kf8 {[%clk 0:00:20.1]} 24. Bg7+ {[%clk 0:02:08.4]} 24... Kg8 {[%clk
0:00:21.4]} 25. Nh6# {[%clk 0:02:05.2]} 1-0

[Event "*** Titled Tuesday Blitz"]
[Site "Chess.com"]
[Date "2018.07.03"]
[Round "6"]
[White "Yurovskykh_Oleksandr"]
[Black "Nathan_Filgueiras"]
[Result "1-0"]
[WhiteElo "2407"]
[BlackElo "2153"]
[TimeControl "180+2"]
[EndTime "14:14:25 PDT"]
[Termination "Yurovskykh_Oleksandr won by resignation"]

1. e4 {[%clk 0:03:00.5]} 1... c5 {[%clk 0:03:00.5]} 2. Nf3 {[%clk 0:03:01.7]}
2... Nc6 {[%clk 0:03:00.8]} 3. Bb5 {[%clk 0:03:02.5]} 3... e5 {[%clk 0:03:01.3]}
4. O-O {[%clk 0:03:00.3]} 4... Bd6 {[%clk 0:02:57.7]} 5. c3 {[%clk 0:02:56.4]}
5... Nge7 {[%clk 0:02:54]} 6. d4 {[%clk 0:02:55.8]} 6... cxd4 {[%clk 0:02:53]}
7. cxd4 {[%clk 0:02:57.7]} 7... exd4 {[%clk 0:02:48.8]} 8. Nxd4 {[%clk
0:02:54.1]} 8... O-O {[%clk 0:02:19.6]} 9. Nc3 {[%clk 0:02:48.4]} 9... a6 {[%clk
0:02:16.4]} 10. Ba4 {[%clk 0:02:35.5]} 10... Be5 {[%clk 0:01:37.3]} 11. Be3
{[%clk 0:02:32.3]} 11... d6 {[%clk 0:01:24.9]} 12. Rc1 {[%clk 0:02:28.3]} 12...
Nxd4 {[%clk 0:01:19.1]} 13. Bxd4 {[%clk 0:02:26.9]} 13... Be6 {[%clk 0:01:20.6]}
14. Qd3 {[%clk 0:02:14.4]} 14... b5 {[%clk 0:01:12.6]} 15. Bb3 {[%clk 0:02:15]}
15... Bxb3 {[%clk 0:01:10.1]} 16. axb3 {[%clk 0:02:16.9]} 16... Nc6 {[%clk
0:00:48.7]} 17. Be3 {[%clk 0:02:17.2]} 17... Nb4 {[%clk 0:00:34.4]} 18. Qd2
{[%clk 0:02:17.5]} 18... Qe7 {[%clk 0:00:17.8]} 19. Rfd1 {[%clk 0:02:14.4]}
19... Rfc8 {[%clk 0:00:14.5]} 20. f3 {[%clk 0:02:15]} 20... Nc6 {[%clk
0:00:13.1]} 21. Nd5 {[%clk 0:02:15.3]} 21... Qd8 {[%clk 0:00:13.2]} 22. Bg5
{[%clk 0:02:12.1]} 22... f6 {[%clk 0:00:11.4]} 23. Be3 {[%clk 0:02:11.7]} 23...
f5 {[%clk 0:00:06.4]} 24. exf5 {[%clk 0:02:07]} 24... Rab8 {[%clk 0:00:04.8]}
25. Bg5 {[%clk 0:02:05]} 25... Qf8 {[%clk 0:00:05]} 26. Rxc6 {[%clk 0:02:04.6]}
26... Rxc6 {[%clk 0:00:05.6]} 27. Ne7+ {[%clk 0:02:06]} 27... Kh8 {[%clk
0:00:06]} 28. Nxc6 {[%clk 0:02:07.6]} 28... Rc8 {[%clk 0:00:06.1]} 1-0

[Event "*** Titled Tuesday Blitz"]
[Site "Chess.com"]
[Date "2018.07.03"]
[Round "6"]
[White "dinesh501"]
[Black "abhijeetgupta1016"]
[Result "0-1"]
[WhiteElo "2003"]
[BlackElo "2795"]
[TimeControl "180+2"]
[EndTime "14:14:37 PDT"]
[Termination "abhijeetgupta1016 won by checkmate"]

1. d4 {[%clk 0:02:55.1]} 1... Nf6 {[%clk 0:03:00.1]} 2. Nf3 {[%clk 0:02:56.2]}
2... g6 {[%clk 0:03:00.7]} 3. c4 {[%clk 0:02:56.7]} 3... Bg7 {[%clk 0:03:01.5]}
4. Nc3 {[%clk 0:02:56.9]} 4... d5 {[%clk 0:03:02.5]} 5. Qb3 {[%clk 0:02:56.4]}
5... dxc4 {[%clk 0:03:01.6]} 6. Qxc4 {[%clk 0:02:55.1]} 6... Be6 {[%clk
0:03:03.1]} 7. Qb5+ {[%clk 0:02:53.4]} 7... Nc6 {[%clk 0:03:04.5]} 8. Qxb7
{[%clk 0:02:51.2]} 8... Bd7 {[%clk 0:03:05.6]} 9. Qb3 {[%clk 0:02:49.6]} 9...
Rb8 {[%clk 0:03:06.9]} 10. Qd1 {[%clk 0:02:44.9]} 10... Bf5 {[%clk 0:03:07.8]}
11. a3 {[%clk 0:02:40.6]} 11... e5 {[%clk 0:03:07.3]} 12. e3 {[%clk 0:02:34.2]}
12... exd4 {[%clk 0:03:06.5]} 13. exd4 {[%clk 0:02:36.1]} 13... O-O {[%clk
0:03:05.6]} 14. Be2 {[%clk 0:02:37.4]} 14... Ne4 {[%clk 0:03:05]} 15. O-O {[%clk
0:02:36.3]} 15... Nxd4 {[%clk 0:03:05.1]} 16. Nxd4 {[%clk 0:02:35.7]} 16... Bxd4
{[%clk 0:03:04.8]} 17. Nxe4 {[%clk 0:01:43.8]} 17... Bxe4 {[%clk 0:03:06.7]} 18.
Bf3 {[%clk 0:01:44]} 18... Bf5 {[%clk 0:02:57.9]} 19. h3 {[%clk 0:01:29.8]}
19... c5 {[%clk 0:02:57.6]} 20. Qa4 {[%clk 0:01:28.4]} 20... Re8 {[%clk
0:02:33.7]} 21. Qxa7 {[%clk 0:01:17.7]} 21... Bd3 {[%clk 0:02:18.3]} 22. Rd1
{[%clk 0:01:10.4]} 22... c4 {[%clk 0:02:17.9]} 23. Qa4 {[%clk 0:01:01.2]} 23...
Qh4 {[%clk 0:02:12]} 24. Be3 {[%clk 0:00:57.2]} 24... Rxe3 {[%clk 0:02:06.3]}
25. fxe3 {[%clk 0:00:57.1]} 25... Bxe3+ {[%clk 0:02:06.8]} 26. Kh1 {[%clk
0:00:58.6]} 26... Qg3 {[%clk 0:02:03.1]} 27. Bd5 {[%clk 0:00:47]} 27... Bf4
{[%clk 0:01:58.1]} 28. Kg1 {[%clk 0:00:46.5]} 28... Qe3+ {[%clk 0:01:52.8]} 29.
Kh1 {[%clk 0:00:44.2]} 29... Qg3 {[%clk 0:01:54.7]} 30. Kg1 {[%clk 0:00:43.8]}
30... Qh2+ {[%clk 0:01:55.8]} 31. Kf2 {[%clk 0:00:44]} 31... Rxb2+ {[%clk
0:01:52.9]} 32. Kf3 {[%clk 0:00:35.1]} 32... Qg3# {[%clk 0:01:51.1]} 0-1

[Event "*** Titled Tuesday Blitz"]
[Site "Chess.com"]
[Date "2018.07.03"]
[Round "6"]
[White "djano"]
[Black "rasmussvane"]
[Result "0-1"]
[WhiteElo "2395"]
[BlackElo "2585"]
[TimeControl "180+2"]
[EndTime "14:14:40 PDT"]
[Termination "rasmussvane won by resignation"]

1. d4 {[%clk 0:02:59.4]} 1... Nf6 {[%clk 0:03:00.3]} 2. Bg5 {[%clk 0:02:59.2]}
2... d5 {[%clk 0:03:01.1]} 3. e3 {[%clk 0:02:59.3]} 3... c5 {[%clk 0:02:58.7]}
4. Bxf6 {[%clk 0:02:57.3]} 4... gxf6 {[%clk 0:02:59.6]} 5. c3 {[%clk 0:02:54.6]}
5... e5 {[%clk 0:02:51.3]} 6. dxc5 {[%clk 0:02:49.9]} 6... Bxc5 {[%clk
0:02:50.9]} 7. Nd2 {[%clk 0:02:51.1]} 7... Nc6 {[%clk 0:02:50.9]} 8. Bd3 {[%clk
0:02:47.5]} 8... Be6 {[%clk 0:02:49]} 9. Qh5 {[%clk 0:02:39]} 9... Qd7 {[%clk
0:02:46.5]} 10. h3 {[%clk 0:02:34.5]} 10... O-O-O {[%clk 0:02:45.8]} 11. Ne2
{[%clk 0:02:32.6]} 11... Kb8 {[%clk 0:02:45.9]} 12. b4 {[%clk 0:02:28.4]} 12...
Bd6 {[%clk 0:02:40.5]} 13. O-O {[%clk 0:02:26.5]} 13... Rdg8 {[%clk 0:02:39.6]}
14. Ng3 {[%clk 0:02:26.8]} 14... e4 {[%clk 0:02:36.6]} 15. Bb5 {[%clk
0:02:22.9]} 15... Bxg3 {[%clk 0:02:36.2]} 16. fxg3 {[%clk 0:02:22.3]} 16... Rxg3
{[%clk 0:02:38.1]} 17. Kh2 {[%clk 0:02:09.5]} 17... Qd6 {[%clk 0:02:07.6]} 18.
Kh1 {[%clk 0:02:05.9]} 18... Rhg8 {[%clk 0:02:05.6]} 19. Rf2 {[%clk 0:02:00.6]}
19... Rxe3 {[%clk 0:02:05.8]} 20. Qxh7 {[%clk 0:01:58.9]} 20... Reg3 {[%clk
0:01:15.9]} 21. Rd1 {[%clk 0:01:58.5]} 21... Qe5 {[%clk 0:01:12.5]} 22. Bxc6
{[%clk 0:01:47.9]} 22... bxc6 {[%clk 0:01:12.3]} 23. Nb3 {[%clk 0:01:41.1]}
23... e3 {[%clk 0:01:06.9]} 24. Re2 {[%clk 0:01:39.9]} 24... Bxh3 {[%clk
0:01:03.5]} 25. gxh3 {[%clk 0:01:30.7]} 25... Qg5 {[%clk 0:01:02.9]} 26. Qxg8+
{[%clk 0:01:22.5]} 26... Qxg8 {[%clk 0:01:03.2]} 27. Kh2 {[%clk 0:01:22.3]}
27... Qg5 {[%clk 0:00:56.9]} 28. Rf1 {[%clk 0:01:06.8]} 28... Qh4 {[%clk
0:00:55.4]} 0-1

[Event "*** Titled Tuesday Blitz"]
[Site "Chess.com"]
[Date "2018.07.03"]
[Round "6"]
[White "Hrant_ChessMood"]
[Black "Margency"]
[Result "1-0"]
[WhiteElo "2898"]
[BlackElo "2657"]
[TimeControl "180+2"]
[EndTime "14:14:41 PDT"]
[Termination "Hrant_ChessMood won by resignation"]

1. d4 {[%clk 0:02:56.4]} 1... Nf6 {[%clk 0:02:56.1]} 2. Nf3 {[%clk 0:02:57.4]}
2... g6 {[%clk 0:02:56.6]} 3. Nc3 {[%clk 0:02:57.2]} 3... d5 {[%clk 0:02:56.8]}
4. Bf4 {[%clk 0:02:57.8]} 4... Bg7 {[%clk 0:02:56.8]} 5. Nb5 {[%clk 0:02:58]}
5... Na6 {[%clk 0:02:57.1]} 6. e3 {[%clk 0:02:58.7]} 6... O-O {[%clk 0:02:56.9]}
7. h3 {[%clk 0:02:59.3]} 7... Bf5 {[%clk 0:02:47.8]} 8. Be2 {[%clk 0:02:59.6]}
8... c5 {[%clk 0:02:43.6]} 9. c3 {[%clk 0:02:57.9]} 9... Ne4 {[%clk 0:02:22]}
10. O-O {[%clk 0:02:55]} 10... h6 {[%clk 0:02:21.1]} 11. a4 {[%clk 0:02:54.3]}
11... g5 {[%clk 0:02:21.6]} 12. Bh2 {[%clk 0:02:54.6]} 12... Bh7 {[%clk
0:02:10]} 13. Nd2 {[%clk 0:02:54.3]} 13... Re8 {[%clk 0:01:53]} 14. Nxe4 {[%clk
0:02:46.5]} 14... Bxe4 {[%clk 0:01:53.5]} 15. Bd3 {[%clk 0:02:47.6]} 15... Bxd3
{[%clk 0:01:42.6]} 16. Qxd3 {[%clk 0:02:49.5]} 16... Qd7 {[%clk 0:01:35.8]} 17.
Rfd1 {[%clk 0:02:49.1]} 17... c4 {[%clk 0:01:32.6]} 18. Qc2 {[%clk 0:02:46]}
18... Rec8 {[%clk 0:01:25.5]} 19. e4 {[%clk 0:02:46.9]} 19... dxe4 {[%clk
0:01:07.7]} 20. Qxe4 {[%clk 0:02:46.5]} 20... Nb8 {[%clk 0:01:08.4]} 21. d5
{[%clk 0:02:39.3]} 21... Na6 {[%clk 0:01:08.5]} 22. d6 {[%clk 0:02:27.7]} 22...
e5 {[%clk 0:00:48.5]} 23. Rd5 {[%clk 0:02:16.3]} 23... f5 {[%clk 0:00:39.3]} 24.
Qe2 {[%clk 0:02:16.9]} 24... f4 {[%clk 0:00:40.2]} 25. Rad1 {[%clk 0:02:14.1]}
25... Re8 {[%clk 0:00:38.1]} 26. f3 {[%clk 0:02:11.5]} 26... Rec8 {[%clk
0:00:32.8]} 27. Kh1 {[%clk 0:02:11.7]} 27... Kh8 {[%clk 0:00:32.6]} 28. Bg1
{[%clk 0:02:12.7]} 28... b6 {[%clk 0:00:31.9]} 29. Re1 {[%clk 0:02:07.5]} 29...
Rc6 {[%clk 0:00:32.6]} 30. Rxe5 {[%clk 0:02:07.6]} 30... Bxe5 {[%clk 0:00:17.8]}
31. Qxe5+ {[%clk 0:02:09.2]} 31... Qg7 {[%clk 0:00:14.7]} 32. Qd5 {[%clk
0:02:03.9]} 32... Qd7 {[%clk 0:00:15.1]} 33. Bd4+ {[%clk 0:02:04.6]} 1-0

[Event "*** Titled Tuesday Blitz"]
[Site "Chess.com"]
[Date "2018.07.03"]
[Round "6"]
[White "canwedoit"]
[Black "BillForster"]
[Result "1-0"]
[WhiteElo "2507"]
[BlackElo "1706"]
[TimeControl "180+2"]
[EndTime "14:15:25 PDT"]
[Termination "canwedoit won by resignation"]

1. e4 {[%clk 0:03:01.9]} 1... c5 {[%clk 0:02:59.9]} 2. Nf3 {[%clk 0:03:02.7]}
2... a6 {[%clk 0:03:00.4]} 3. c3 {[%clk 0:03:02.7]} 3... e6 {[%clk 0:02:58]} 4.
d4 {[%clk 0:03:02.5]} 4... d5 {[%clk 0:02:57.8]} 5. e5 {[%clk 0:03:01.3]} 5...
Bd7 {[%clk 0:02:56.4]} 6. a4 {[%clk 0:02:58.1]} 6... h5 {[%clk 0:02:47.3]} 7.
Bd3 {[%clk 0:02:55.7]} 7... Nh6 {[%clk 0:02:34.4]} 8. Nbd2 {[%clk 0:02:46.1]}
8... Nf5 {[%clk 0:02:31.6]} 9. Nf1 {[%clk 0:02:45.1]} 9... g6 {[%clk 0:02:18.1]}
10. Ng3 {[%clk 0:02:28.1]} 10... Nc6 {[%clk 0:01:39.7]} 11. Nxf5 {[%clk
0:02:27]} 11... gxf5 {[%clk 0:01:34.3]} 12. O-O {[%clk 0:02:05.2]} 12... c4
{[%clk 0:01:28.1]} 13. Bc2 {[%clk 0:01:58]} 13... Be7 {[%clk 0:01:25.7]} 14. Bf4
{[%clk 0:01:51]} 14... Qa5 {[%clk 0:01:16.7]} 15. Qd2 {[%clk 0:01:40.3]} 15...
O-O-O {[%clk 0:01:16.5]} 16. b4 {[%clk 0:01:28.1]} 16... cxb3 {[%clk 0:01:12.1]}
17. Bxb3 {[%clk 0:01:29.4]} 17... Rdg8 {[%clk 0:01:08.1]} 18. Rfb1 {[%clk
0:01:24]} 18... h4 {[%clk 0:01:03.2]} 19. h3 {[%clk 0:01:24.8]} 19... Rh7 {[%clk
0:00:55]} 20. Qb2 {[%clk 0:01:14.4]} 20... Rhg7 {[%clk 0:00:52.6]} 21. Ne1
{[%clk 0:01:12.9]} 21... Nd8 {[%clk 0:00:48.5]} 22. c4 {[%clk 0:01:12.3]} 22...
dxc4 {[%clk 0:00:38.3]} 23. Bxc4 {[%clk 0:01:14.1]} 23... Bc6 {[%clk 0:00:38.9]}
24. f3 {[%clk 0:01:08.5]} 24... Qxe1+ {[%clk 0:00:24.5]} 25. Rxe1 {[%clk
0:01:07.9]} 25... Bxf3 {[%clk 0:00:22.7]} 26. Bf1 {[%clk 0:01:06.1]} 26... Nc6
{[%clk 0:00:19.8]} 27. Kh2 {[%clk 0:01:01.8]} 27... Nb4 {[%clk 0:00:16.7]} 28.
gxf3 {[%clk 0:01:00.4]} 28... Nd3 {[%clk 0:00:14.4]} 29. Bxd3 {[%clk 0:01:00.3]}
1-0

[Event "*** Titled Tuesday Blitz"]
[Site "Chess.com"]
[Date "2018.07.03"]
[Round "6"]
[White "DishonorOnYourCow"]
[Black "Mikhail_Golubev"]
[Result "0-1"]
[WhiteElo "2231"]
[BlackElo "2377"]
[TimeControl "180+2"]
[EndTime "14:15:33 PDT"]
[Termination "Mikhail_Golubev won by resignation"]

1. d4 {[%clk 0:03:01.9]} 1... Nf6 {[%clk 0:02:59.9]} 2. c4 {[%clk 0:03:02.6]}
2... g6 {[%clk 0:03:00.2]} 3. Nc3 {[%clk 0:03:04]} 3... Bg7 {[%clk 0:03:01.3]}
4. e4 {[%clk 0:03:05.3]} 4... d6 {[%clk 0:03:02.2]} 5. f4 {[%clk 0:03:06.7]}
5... O-O {[%clk 0:03:01]} 6. Nf3 {[%clk 0:03:08.2]} 6... c5 {[%clk 0:02:56.1]}
7. d5 {[%clk 0:03:09.3]} 7... e6 {[%clk 0:02:57.2]} 8. dxe6 {[%clk 0:03:11.2]}
8... Bxe6 {[%clk 0:02:52.1]} 9. Bd3 {[%clk 0:03:12.3]} 9... Nc6 {[%clk
0:02:52.2]} 10. f5 {[%clk 0:03:13.4]} 10... gxf5 {[%clk 0:02:38.6]} 11. exf5
{[%clk 0:03:13.9]} 11... Bd7 {[%clk 0:02:36.1]} 12. O-O {[%clk 0:03:14.7]} 12...
Ne5 {[%clk 0:02:29.4]} 13. Nxe5 {[%clk 0:03:03.4]} 13... dxe5 {[%clk 0:02:30]}
14. Bg5 {[%clk 0:03:05]} 14... Bc6 {[%clk 0:02:30.4]} 15. Qe2 {[%clk 0:02:58.9]}
15... Qd4+ {[%clk 0:02:10.7]} 16. Kh1 {[%clk 0:02:51.2]} 16... Qg4 {[%clk
0:02:03.2]} 17. Qxg4 {[%clk 0:02:48.7]} 17... Nxg4 {[%clk 0:02:03.3]} 18. f6
{[%clk 0:02:49.5]} 18... Bh8 {[%clk 0:02:02.4]} 19. h3 {[%clk 0:02:48.8]} 19...
h6 {[%clk 0:02:00.3]} 20. hxg4 {[%clk 0:02:27.7]} 20... hxg5 {[%clk 0:02:00.9]}
21. Rf5 {[%clk 0:02:23.9]} 21... Rfd8 {[%clk 0:02:01.6]} 22. Be4 {[%clk
0:01:35.4]} 22... Rd4 {[%clk 0:01:59.6]} 23. Rxg5+ {[%clk 0:00:27.6]} 23... Kf8
{[%clk 0:01:59.4]} 24. Bxc6 {[%clk 0:00:28.7]} 24... bxc6 {[%clk 0:01:58.3]} 25.
Rf1 {[%clk 0:00:29.6]} 25... Rad8 {[%clk 0:01:49.7]} 26. Rh5 {[%clk 0:00:18.1]}
26... Kg8 {[%clk 0:01:46.3]} 27. Rg5+ {[%clk 0:00:18.4]} 27... Kh7 {[%clk
0:01:45]} 28. Rf3 {[%clk 0:00:18.3]} 28... Kh6 {[%clk 0:01:42.2]} 29. Rff5
{[%clk 0:00:18]} 29... Bxf6 {[%clk 0:01:39.3]} 30. Rh5+ {[%clk 0:00:19.2]} 30...
Kg6 {[%clk 0:01:36.6]} 31. Rh3 {[%clk 0:00:10.4]} 31... Rxg4 {[%clk 0:01:35.2]}
32. Rhf3 {[%clk 0:00:11.5]} 32... Rd6 {[%clk 0:01:31.3]} 33. Kh2 {[%clk
0:00:12.4]} 33... e4 {[%clk 0:01:31.8]} 34. Rf1 {[%clk 0:00:11.1]} 34... Rh4+
{[%clk 0:01:27.8]} 35. Kg3 {[%clk 0:00:12]} 35... Rd3+ {[%clk 0:01:28.5]} 0-1

[Event "*** Titled Tuesday Blitz"]
[Site "Chess.com"]
[Date "2018.07.03"]
[Round "6"]
[White "ChrisTool2"]
[Black "Rickstereo"]
[Result "1-0"]
[WhiteElo "2270"]
[BlackElo "2163"]
[TimeControl "180+2"]
[EndTime "14:15:41 PDT"]
[Termination "ChrisTool2 won on time"]

1. d4 {[%clk 0:03:01.9]} 1... Nf6 {[%clk 0:03:00]} 2. c4 {[%clk 0:03:02.2]} 2...
c5 {[%clk 0:02:56.8]} 3. e3 {[%clk 0:03:01.8]} 3... e6 {[%clk 0:02:50]} 4. Nf3
{[%clk 0:03:02]} 4... b6 {[%clk 0:02:44.3]} 5. Nc3 {[%clk 0:03:02.7]} 5... Be7
{[%clk 0:02:36.4]} 6. Bd3 {[%clk 0:02:59.4]} 6... O-O {[%clk 0:02:33.5]} 7. O-O
{[%clk 0:02:58.9]} 7... Bb7 {[%clk 0:02:29.1]} 8. b3 {[%clk 0:02:54.8]} 8...
cxd4 {[%clk 0:02:11.9]} 9. exd4 {[%clk 0:02:50.8]} 9... d5 {[%clk 0:02:11.4]}
10. Bb2 {[%clk 0:02:44.8]} 10... dxc4 {[%clk 0:02:11.3]} 11. bxc4 {[%clk
0:02:41.9]} 11... Nc6 {[%clk 0:02:07.6]} 12. Qe2 {[%clk 0:02:37.5]} 12... Rc8
{[%clk 0:01:10.1]} 13. Rad1 {[%clk 0:02:30.4]} 13... Qc7 {[%clk 0:00:54.8]} 14.
Rfe1 {[%clk 0:02:14.5]} 14... Rfe8 {[%clk 0:00:53.6]} 15. Bb1 {[%clk 0:02:09]}
15... a6 {[%clk 0:00:49.4]} 16. Ne4 {[%clk 0:01:58.8]} 16... Na5 {[%clk
0:00:31.8]} 17. d5 {[%clk 0:01:47.7]} 17... Qxc4 {[%clk 0:00:23.5]} 18. Bd3
{[%clk 0:01:20.5]} 18... Qxa2 {[%clk 0:00:12.9]} 19. d6 {[%clk 0:00:47.5]} 19...
Bxe4 {[%clk 0:00:11.4]} 20. Bxe4 {[%clk 0:00:35.9]} 20... Bd8 {[%clk 0:00:09.6]}
21. Bxf6 {[%clk 0:00:30.3]} 21... Qxe2 {[%clk 0:00:03.4]} 22. Rxe2 {[%clk
0:00:32.2]} 1-0

[Event "*** Titled Tuesday Blitz"]
[Site "Chess.com"]
[Date "2018.07.03"]
[Round "6"]
[White "Zq1"]
[Black "GameOverBro"]
[Result "1/2-1/2"]
[WhiteElo "2510"]
[BlackElo "2445"]
[TimeControl "180+2"]
[EndTime "14:15:47 PDT"]
[Termination "Game drawn by repetition"]

1. d4 {[%clk 0:02:56.9]} 1... d6 {[%clk 0:02:57.3]} 2. Nf3 {[%clk 0:02:56.9]}
2... Nf6 {[%clk 0:02:58.3]} 3. c4 {[%clk 0:02:57.5]} 3... Nbd7 {[%clk
0:02:59.3]} 4. Nc3 {[%clk 0:02:58.4]} 4... e5 {[%clk 0:03:00.7]} 5. e4 {[%clk
0:02:59.1]} 5... Be7 {[%clk 0:03:02]} 6. Be2 {[%clk 0:03:00.2]} 6... O-O {[%clk
0:03:03.5]} 7. O-O {[%clk 0:03:00.9]} 7... c6 {[%clk 0:03:05]} 8. Qc2 {[%clk
0:03:01.5]} 8... a5 {[%clk 0:03:05.1]} 9. Rd1 {[%clk 0:03:00.9]} 9... Qc7 {[%clk
0:03:05.5]} 10. Be3 {[%clk 0:03:01.6]} 10... Ng4 {[%clk 0:03:05.1]} 11. Bd2
{[%clk 0:03:02]} 11... Re8 {[%clk 0:03:06]} 12. h3 {[%clk 0:03:02.2]} 12... Ngf6
{[%clk 0:03:07]} 13. Be3 {[%clk 0:03:03.1]} 13... exd4 {[%clk 0:03:02.9]} 14.
Nxd4 {[%clk 0:03:03.3]} 14... Nc5 {[%clk 0:03:03.7]} 15. Bf3 {[%clk 0:03:02.3]}
15... Bf8 {[%clk 0:03:03.9]} 16. Rac1 {[%clk 0:02:55.7]} 16... Bd7 {[%clk
0:02:47.9]} 17. b3 {[%clk 0:02:54.3]} 17... Rad8 {[%clk 0:02:48.5]} 18. a3
{[%clk 0:02:48.4]} 18... h6 {[%clk 0:02:48.7]} 19. b4 {[%clk 0:02:48.1]} 19...
axb4 {[%clk 0:02:49.9]} 20. axb4 {[%clk 0:02:48.9]} 20... Na6 {[%clk 0:02:51]}
21. b5 {[%clk 0:02:44.1]} 21... Nc5 {[%clk 0:02:51.2]} 22. Nb3 {[%clk
0:02:43.9]} 22... Nxb3 {[%clk 0:02:47.1]} 23. Qxb3 {[%clk 0:02:44.3]} 23... c5
{[%clk 0:02:48]} 24. b6 {[%clk 0:02:37.2]} 24... Qc8 {[%clk 0:02:40.6]} 25. Bf4
{[%clk 0:02:34.3]} 25... Bc6 {[%clk 0:02:35.4]} 26. Re1 {[%clk 0:02:24.3]} 26...
Nd7 {[%clk 0:02:29.3]} 27. Bg4 {[%clk 0:02:11.2]} 27... Qb8 {[%clk 0:02:20.4]}
28. Nd5 {[%clk 0:02:03.5]} 28... Bxd5 {[%clk 0:02:15.4]} 29. exd5 {[%clk
0:01:57.6]} 29... Nf6 {[%clk 0:02:06.3]} 30. Bf3 {[%clk 0:01:52.5]} 30... Rxe1+
{[%clk 0:02:06.8]} 31. Rxe1 {[%clk 0:01:52.5]} 31... Re8 {[%clk 0:02:08.1]} 32.
Qb1 {[%clk 0:01:48.2]} 32... Rxe1+ {[%clk 0:02:05.2]} 33. Qxe1 {[%clk
0:01:48.8]} 33... Qd8 {[%clk 0:02:06.4]} 34. Qb1 {[%clk 0:01:44.3]} 34... Nd7
{[%clk 0:02:07.1]} 35. Bd2 {[%clk 0:01:37.1]} 35... Qxb6 {[%clk 0:02:04.2]} 36.
Qf5 {[%clk 0:01:35]} 36... Ne5 {[%clk 0:01:59.1]} 37. Be4 {[%clk 0:01:31.1]}
37... g6 {[%clk 0:01:59.4]} 38. Qf6 {[%clk 0:01:27.4]} 38... Nxc4 {[%clk
0:01:40.4]} 39. Bxg6 {[%clk 0:01:23.4]} 39... fxg6 {[%clk 0:01:39.6]} 40. Qxg6+
{[%clk 0:01:21.9]} 40... Bg7 {[%clk 0:01:40.7]} 41. Qe6+ {[%clk 0:01:17.1]}
41... Kf8 {[%clk 0:01:37]} 42. Qf5+ {[%clk 0:01:08.3]} 42... Kg8 {[%clk
0:01:33.4]} 43. Qe6+ {[%clk 0:01:07.3]} 43... Kf8 {[%clk 0:01:31]} 44. Qf5+
{[%clk 0:00:53.9]} 44... Ke7 {[%clk 0:01:25.7]} 45. Qe6+ {[%clk 0:00:49.6]}
45... Kf8 {[%clk 0:01:26.5]} 1/2-1/2

[Event "*** Titled Tuesday Blitz"]
[Site "Chess.com"]
[Date "2018.07.03"]
[Round "6"]
[White "Spring199"]
[Black "Mimsychess"]
[Result "1-0"]
[WhiteElo "2194"]
[BlackElo "2293"]
[TimeControl "180+2"]
[EndTime "14:15:53 PDT"]
[Termination "Spring199 won by resignation"]

1. d4 {[%clk 0:03:01.9]} 1... f5 {[%clk 0:02:52.9]} 2. Nf3 {[%clk 0:02:57.7]}
2... Nf6 {[%clk 0:02:51.6]} 3. Bf4 {[%clk 0:02:59]} 3... e6 {[%clk 0:02:38.7]}
4. e3 {[%clk 0:02:59.7]} 4... b6 {[%clk 0:02:38.4]} 5. Bd3 {[%clk 0:03:00.3]}
5... Bb7 {[%clk 0:02:39.5]} 6. Nbd2 {[%clk 0:03:01.6]} 6... Be7 {[%clk
0:02:37.7]} 7. Qe2 {[%clk 0:03:02.8]} 7... O-O {[%clk 0:02:39]} 8. h3 {[%clk
0:03:03.1]} 8... Ne4 {[%clk 0:02:31.3]} 9. O-O-O {[%clk 0:03:02.5]} 9... d6
{[%clk 0:02:31.7]} 10. g4 {[%clk 0:03:03.1]} 10... Nd7 {[%clk 0:02:29.1]} 11.
Rhg1 {[%clk 0:03:02.9]} 11... Kh8 {[%clk 0:02:13.9]} 12. gxf5 {[%clk 0:02:50.9]}
12... exf5 {[%clk 0:02:14.5]} 13. Rg2 {[%clk 0:02:45.4]} 13... Nxd2 {[%clk
0:02:13.6]} 14. Rxd2 {[%clk 0:02:45.1]} 14... g6 {[%clk 0:02:02.4]} 15. Rd1
{[%clk 0:02:42.7]} 15... Nf6 {[%clk 0:02:03.3]} 16. Rdg1 {[%clk 0:02:41.8]}
16... Nh5 {[%clk 0:01:52.7]} 17. Bh6 {[%clk 0:02:40.7]} 17... Rf7 {[%clk
0:01:49.3]} 18. e4 {[%clk 0:02:37.7]} 18... fxe4 {[%clk 0:01:39.4]} 19. Bxe4
{[%clk 0:02:39.6]} 19... Bxe4 {[%clk 0:01:39.5]} 20. Qxe4 {[%clk 0:02:39.4]}
20... d5 {[%clk 0:01:30.2]} 21. Ne5 {[%clk 0:02:31]} 21... Rf6 {[%clk
0:01:21.1]} 22. Qg4 {[%clk 0:02:23.4]} 22... Bf8 {[%clk 0:00:47.1]} 23. Bg5
{[%clk 0:02:22.3]} 23... Qd6 {[%clk 0:00:46.3]} 24. Bxf6+ {[%clk 0:02:17.4]}
24... Nxf6 {[%clk 0:00:45.7]} 25. Qh4 {[%clk 0:02:14.7]} 25... Kg8 {[%clk
0:00:32.8]} 26. Qg5 {[%clk 0:01:51.1]} 26... Ne4 {[%clk 0:00:30.7]} 27. Qf4
{[%clk 0:01:48]} 27... Bg7 {[%clk 0:00:25.1]} 28. Qf7+ {[%clk 0:01:45.2]} 28...
Kh8 {[%clk 0:00:26.3]} 29. Nxg6+ {[%clk 0:00:53.7]} 29... hxg6 {[%clk
0:00:26.7]} 30. Rxg6 {[%clk 0:00:54.6]} 30... Bh6+ {[%clk 0:00:15.3]} 31. Kb1
{[%clk 0:00:53.9]} 31... Rf8 {[%clk 0:00:14.5]} 32. Rg8+ {[%clk 0:00:43.8]} 1-0